[Event "*** SCC Grand Prix: Titled Tuesday Blitz"]
[Site "Chess.com"]
[Date "2020.08.25"]
[Round "10"]
[White "abykhovsky"]
[Black "GMKrikor"]
[Result "0-1"]
[WhiteElo "2776"]
[BlackElo "2738"]
[TimeControl "180+1"]
[EndTime "12:00:39 PDT"]
[Termination "GMKrikor won by checkmate"]

1. d4 {[%clk 0:03:00.9]} 1... Nf6 {[%clk 0:02:59.6]} 2. c4 {[%clk 0:03:00.1]}
2... g6 {[%clk 0:03:00.1]} 3. Nc3 {[%clk 0:02:59.7]} 3... d5 {[%clk 0:03:00.7]}
4. Bg5 {[%clk 0:02:58.7]} 4... Bg7 {[%clk 0:02:59.9]} 5. e3 {[%clk 0:02:58.2]}
5... Ne4 {[%clk 0:02:34.1]} 6. Bh4 {[%clk 0:02:57.5]} 6... Nxc3 {[%clk
0:02:26.2]} 7. bxc3 {[%clk 0:02:58.4]} 7... c5 {[%clk 0:02:05.2]} 8. cxd5 {[%clk
0:02:57.5]} 8... Qxd5 {[%clk 0:02:02.5]} 9. Qf3 {[%clk 0:02:57.6]} 9... Be6
{[%clk 0:01:41.4]} 10. Bb5+ {[%clk 0:02:54.1]} 10... Kf8 {[%clk 0:01:21.6]} 11.
e4 {[%clk 0:02:35.8]} 11... Qd6 {[%clk 0:01:05.5]} 12. d5 {[%clk 0:02:32.2]}
12... Bd7 {[%clk 0:01:01.1]} 13. Bxd7 {[%clk 0:02:06.3]} 13... Nxd7 {[%clk
0:01:02]} 14. Ne2 {[%clk 0:02:06.7]} 14... Ne5 {[%clk 0:01:02.2]} 15. Qe3 {[%clk
0:02:06.4]} 15... Nc4 {[%clk 0:00:47.1]} 16. Qd3 {[%clk 0:02:06]} 16... Ne5
{[%clk 0:00:34.9]} 17. Qc2 {[%clk 0:02:03.1]} 17... Nc4 {[%clk 0:00:34.9]} 18.
O-O {[%clk 0:01:57.6]} 18... Bf6 {[%clk 0:00:34.8]} 19. Bg3 {[%clk 0:01:57.1]}
19... Qa6 {[%clk 0:00:30.6]} 20. Nf4 {[%clk 0:01:50.7]} 20... Rc8 {[%clk
0:00:21.4]} 21. a4 {[%clk 0:01:37.9]} 21... Ne5 {[%clk 0:00:21]} 22. Rfb1 {[%clk
0:01:28.6]} 22... Kg7 {[%clk 0:00:18.9]} 23. Rb5 {[%clk 0:01:28.7]} 23... b6
{[%clk 0:00:18.8]} 24. Rab1 {[%clk 0:01:27.7]} 24... Rhd8 {[%clk 0:00:17.3]} 25.
c4 {[%clk 0:01:27]} 25... Nd7 {[%clk 0:00:14.6]} 26. Nd3 {[%clk 0:01:25.7]}
26... Bd4 {[%clk 0:00:15]} 27. h4 {[%clk 0:01:23.4]} 27... h5 {[%clk 0:00:14.3]}
28. Kh1 {[%clk 0:01:21.2]} 28... Nf6 {[%clk 0:00:14]} 29. f3 {[%clk 0:01:20.6]}
29... Ne8 {[%clk 0:00:10.9]} 30. Nc1 {[%clk 0:01:14.7]} 30... Nd6 {[%clk
0:00:10.8]} 31. Bxd6 {[%clk 0:01:03.2]} 31... exd6 {[%clk 0:00:11.7]} 32. Ne2
{[%clk 0:01:03.7]} 32... Bf6 {[%clk 0:00:10.3]} 33. g3 {[%clk 0:01:03.8]} 33...
Rb8 {[%clk 0:00:09.7]} 34. a5 {[%clk 0:01:03]} 34... Qb7 {[%clk 0:00:10]} 35.
axb6 {[%clk 0:01:02.1]} 35... axb6 {[%clk 0:00:10.9]} 36. Qb3 {[%clk 0:01:02.5]}
36... Qe7 {[%clk 0:00:10.3]} 37. Rxb6 {[%clk 0:00:59.3]} 37... Rxb6 {[%clk
0:00:11.2]} 38. Qxb6 {[%clk 0:00:59.8]} 38... Ra8 {[%clk 0:00:12.1]} 39. Qb3
{[%clk 0:00:56.9]} 39... Be5 {[%clk 0:00:08.3]} 40. Kg2 {[%clk 0:00:55.9]} 40...
Qa7 {[%clk 0:00:08.4]} 41. Kf2 {[%clk 0:00:44.9]} 41... Bf6 {[%clk 0:00:08.2]}
42. Rd1 {[%clk 0:00:42.3]} 42... Qa5 {[%clk 0:00:08]} 43. Rb1 {[%clk 0:00:39.3]}
43... Qa7 {[%clk 0:00:08.1]} 44. Qb7 {[%clk 0:00:38.7]} 44... Qa2 {[%clk
0:00:07.5]} 45. Qb3 {[%clk 0:00:36.1]} 45... Qd2 {[%clk 0:00:06.3]} 46. Qd1
{[%clk 0:00:33.6]} 46... Bd4+ {[%clk 0:00:04.1]} 47. Kg2 {[%clk 0:00:30.3]}
47... Qe3 {[%clk 0:00:04.3]} 48. Nxd4 {[%clk 0:00:28.1]} 48... cxd4 {[%clk
0:00:05.2]} 49. Rb2 {[%clk 0:00:27.6]} 49... Ra3 {[%clk 0:00:05.8]} 50. Rd2
{[%clk 0:00:23.4]} 50... d3 {[%clk 0:00:05.2]} 51. Kh3 {[%clk 0:00:14.1]} 51...
Rc3 {[%clk 0:00:05]} 52. Kg2 {[%clk 0:00:13.1]} 52... Qd4 {[%clk 0:00:05.3]} 53.
Qa1 {[%clk 0:00:10.5]} 53... Qxc4 {[%clk 0:00:05.5]} 54. Qd1 {[%clk 0:00:10.6]}
54... Rc2 {[%clk 0:00:05.3]} 55. Kf2 {[%clk 0:00:10.5]} 55... Qd4+ {[%clk
0:00:05.2]} 56. Kf1 {[%clk 0:00:11]} 56... Rxd2 {[%clk 0:00:04.8]} 57. Qxd2
{[%clk 0:00:11.3]} 57... Qc4 {[%clk 0:00:05]} 58. Kf2 {[%clk 0:00:11.4]} 58...
Qc5+ {[%clk 0:00:04.7]} 59. Ke1 {[%clk 0:00:11.2]} 59... Qg1# {[%clk 0:00:04.4]}
0-1

[Event "*** SCC Grand Prix: Titled Tuesday Blitz"]
[Site "Chess.com"]
[Date "2020.08.25"]
[Round "10"]
[White "brute4ever"]
[Black "HanSchut"]
[Result "1-0"]
[WhiteElo "2505"]
[BlackElo "2286"]
[TimeControl "180+1"]
[EndTime "12:00:39 PDT"]
[Termination "brute4ever won on time"]

1. e4 {[%clk 0:02:44.1]} 1... c5 {[%clk 0:02:59.6]} 2. Nf3 {[%clk 0:02:43.6]}
2... d6 {[%clk 0:03:00.3]} 3. Bb5+ {[%clk 0:02:44]} 3... Nd7 {[%clk 0:02:59.7]}
4. O-O {[%clk 0:02:43.9]} 4... a6 {[%clk 0:02:59.5]} 5. Bxd7+ {[%clk 0:02:44]}
5... Bxd7 {[%clk 0:02:54.6]} 6. c3 {[%clk 0:02:44.9]} 6... Nf6 {[%clk
0:02:53.1]} 7. Re1 {[%clk 0:02:45.2]} 7... Bc6 {[%clk 0:02:50.1]} 8. d4 {[%clk
0:02:45.5]} 8... Bxe4 {[%clk 0:02:27.4]} 9. Bg5 {[%clk 0:02:43.5]} 9... Bg6
{[%clk 0:02:19.3]} 10. Bxf6 {[%clk 0:02:42.6]} 10... gxf6 {[%clk 0:02:18.7]} 11.
Nbd2 {[%clk 0:02:39.1]} 11... e6 {[%clk 0:02:04.2]} 12. Qb3 {[%clk 0:02:17.9]}
12... Qc7 {[%clk 0:01:54.4]} 13. Ne4 {[%clk 0:01:43.8]} 13... Be7 {[%clk
0:01:52.8]} 14. Ng3 {[%clk 0:01:33]} 14... O-O-O {[%clk 0:01:45.3]} 15. c4
{[%clk 0:01:27.8]} 15... Kb8 {[%clk 0:01:37.8]} 16. d5 {[%clk 0:01:27.4]} 16...
e5 {[%clk 0:01:31.3]} 17. Nh4 {[%clk 0:01:27.6]} 17... Qd7 {[%clk 0:01:28.3]}
18. Qf3 {[%clk 0:01:26.3]} 18... h5 {[%clk 0:01:15.4]} 19. Ngf5 {[%clk
0:01:03.7]} 19... Rdg8 {[%clk 0:01:13.8]} 20. g3 {[%clk 0:01:03.9]} 20... Kc7
{[%clk 0:00:58.4]} 21. Rab1 {[%clk 0:01:03.3]} 21... Bxf5 {[%clk 0:00:51.4]} 22.
Qxf5 {[%clk 0:01:02.4]} 22... Qxf5 {[%clk 0:00:49.8]} 23. Nxf5 {[%clk
0:01:02.3]} 23... Bf8 {[%clk 0:00:50.7]} 24. h4 {[%clk 0:01:02.6]} 24... Bh6
{[%clk 0:00:50.2]} 25. Kf1 {[%clk 0:01:01.1]} 25... Rg4 {[%clk 0:00:46.9]} 26.
b3 {[%clk 0:00:59.5]} 26... Bd2 {[%clk 0:00:42.3]} 27. Re2 {[%clk 0:00:59.1]}
27... Bc3 {[%clk 0:00:42.1]} 28. f3 {[%clk 0:00:56.3]} 28... Rg6 {[%clk
0:00:39.8]} 29. Re4 {[%clk 0:00:55.7]} 29... Kd7 {[%clk 0:00:34.2]} 30. Kg2
{[%clk 0:00:55.7]} 30... Bd4 {[%clk 0:00:31.2]} 31. Kh3 {[%clk 0:00:56]} 31...
Rhg8 {[%clk 0:00:29.9]} 32. Rf1 {[%clk 0:00:55.7]} 32... b5 {[%clk 0:00:25.7]}
33. Rc1 {[%clk 0:00:46.7]} 33... Bf2 {[%clk 0:00:23.8]} 34. g4 {[%clk
0:00:46.8]} 34... Rh8 {[%clk 0:00:18.5]} 35. Rc2 {[%clk 0:00:45.6]} 35... hxg4+
{[%clk 0:00:15.2]} 36. Rxg4 {[%clk 0:00:42.1]} 36... Rxg4 {[%clk 0:00:13]} 37.
fxg4 {[%clk 0:00:41.9]} 37... Bd4 {[%clk 0:00:12.3]} 38. h5 {[%clk 0:00:38.4]}
38... b4 {[%clk 0:00:10.7]} 39. Kg3 {[%clk 0:00:38.7]} 39... a5 {[%clk
0:00:10.4]} 40. Kf3 {[%clk 0:00:38.6]} 40... Kc7 {[%clk 0:00:10]} 41. Ke4 {[%clk
0:00:37.8]} 41... Kd7 {[%clk 0:00:10.5]} 42. Rh2 {[%clk 0:00:36.7]} 42... Kc7
{[%clk 0:00:09.7]} 43. h6 {[%clk 0:00:35.3]} 43... Kd7 {[%clk 0:00:10.3]} 44. h7
{[%clk 0:00:35]} 44... Kc7 {[%clk 0:00:06]} 45. Rh6 {[%clk 0:00:35.3]} 45... a4
{[%clk 0:00:04.9]} 46. Ng3 {[%clk 0:00:33.9]} 46... axb3 {[%clk 0:00:04.7]} 47.
axb3 {[%clk 0:00:34.8]} 47... Kd7 {[%clk 0:00:04.4]} 48. Nh5 {[%clk 0:00:35]}
48... Ke7 {[%clk 0:00:04.6]} 49. Nxf6 {[%clk 0:00:35.3]} 49... Bb2 {[%clk
0:00:02.4]} 50. g5 {[%clk 0:00:34.8]} 50... Bc3 {[%clk 0:00:01.9]} 51. Kf5
{[%clk 0:00:26.8]} 51... Bd2 {[%clk 0:00:02.3]} 52. Ne4 {[%clk 0:00:26.5]} 52...
Bxg5 {[%clk 0:00:01.1]} 53. Nxg5 {[%clk 0:00:25.4]} 53... f6 {[%clk 0:00:02]}
54. Rxf6 {[%clk 0:00:24.3]} 1-0

[Event "*** SCC Grand Prix: Titled Tuesday Blitz"]
[Site "Chess.com"]
[Date "2020.08.25"]
[Round "10"]
[White "paulrusan"]
[Black "profofchess"]
[Result "1/2-1/2"]
[WhiteElo "2232"]
[BlackElo "2421"]
[TimeControl "180+1"]
[EndTime "12:00:41 PDT"]
[Termination "Game drawn by stalemate"]

1. e4 {[%clk 0:03:00.9]} 1... e6 {[%clk 0:03:00.1]} 2. Nf3 {[%clk 0:03:00.3]}
2... d5 {[%clk 0:02:59.2]} 3. e5 {[%clk 0:03:00.2]} 3... Nh6 {[%clk 0:02:57.5]}
4. d4 {[%clk 0:02:57.4]} 4... c5 {[%clk 0:02:55.8]} 5. c3 {[%clk 0:02:57.7]}
5... Nc6 {[%clk 0:02:54.7]} 6. a3 {[%clk 0:02:57]} 6... f6 {[%clk 0:02:48.8]} 7.
exf6 {[%clk 0:02:56.2]} 7... Qxf6 {[%clk 0:02:48.3]} 8. Bg5 {[%clk 0:02:45.3]}
8... Qf7 {[%clk 0:02:48.3]} 9. dxc5 {[%clk 0:02:43.1]} 9... Bxc5 {[%clk
0:02:42.4]} 10. b4 {[%clk 0:02:40.6]} 10... Bb6 {[%clk 0:02:34.6]} 11. Be2
{[%clk 0:02:30.2]} 11... e5 {[%clk 0:02:21]} 12. b5 {[%clk 0:02:27.3]} 12... Ne7
{[%clk 0:02:07.1]} 13. O-O {[%clk 0:02:22.7]} 13... Ng6 {[%clk 0:02:03.3]} 14.
Nbd2 {[%clk 0:02:15.8]} 14... O-O {[%clk 0:01:49.4]} 15. Bxh6 {[%clk 0:02:12.6]}
15... gxh6 {[%clk 0:01:49.2]} 16. Nb3 {[%clk 0:02:03.9]} 16... Be6 {[%clk
0:01:39.3]} 17. Qd2 {[%clk 0:02:03.6]} 17... Kg7 {[%clk 0:01:32.4]} 18. a4
{[%clk 0:02:01.2]} 18... a5 {[%clk 0:01:02.4]} 19. bxa6 {[%clk 0:01:50]} 19...
bxa6 {[%clk 0:01:02.2]} 20. a5 {[%clk 0:01:50.2]} 20... Ba7 {[%clk 0:01:02.3]}
21. Rae1 {[%clk 0:01:20.6]} 21... Rab8 {[%clk 0:00:40]} 22. Bd1 {[%clk 0:01:20]}
22... Qc7 {[%clk 0:00:31.4]} 23. Qd3 {[%clk 0:01:05.3]} 23... d4 {[%clk
0:00:13.3]} 24. c4 {[%clk 0:00:58]} 24... Bxc4 {[%clk 0:00:12.9]} 25. Qe4 {[%clk
0:00:41.3]} 25... Bxb3 {[%clk 0:00:11.5]} 26. Bxb3 {[%clk 0:00:38.7]} 26... Rxb3
{[%clk 0:00:11.6]} 27. Nxe5 {[%clk 0:00:39]} 27... Nxe5 {[%clk 0:00:11.7]} 28.
Qxe5+ {[%clk 0:00:36.8]} 28... Qxe5 {[%clk 0:00:11.9]} 29. Rxe5 {[%clk
0:00:37.1]} 29... Rf7 {[%clk 0:00:11.4]} 30. Rd5 {[%clk 0:00:34.7]} 30... d3
{[%clk 0:00:10.8]} 31. g3 {[%clk 0:00:23.4]} 31... Rb2 {[%clk 0:00:10.5]} 32.
Rxd3 {[%clk 0:00:22.8]} 32... Rbxf2 {[%clk 0:00:09.4]} 33. Rxf2 {[%clk
0:00:22.6]} 33... Rxf2 {[%clk 0:00:09.1]} 34. Kh1 {[%clk 0:00:22.9]} 34... Rf7
{[%clk 0:00:05.6]} 35. Rd6 {[%clk 0:00:22.1]} 35... Rf6 {[%clk 0:00:04.7]} 36.
Rd7+ {[%clk 0:00:21.8]} 36... Rf7 {[%clk 0:00:05]} 37. Rd6 {[%clk 0:00:22.2]}
37... Bc5 {[%clk 0:00:01.6]} 38. Rxa6 {[%clk 0:00:20.7]} 38... Ra7 {[%clk
0:00:01.9]} 39. Rxa7+ {[%clk 0:00:19]} 39... Bxa7 {[%clk 0:00:01.5]} 40. Kg2
{[%clk 0:00:19.5]} 40... Bc5 {[%clk 0:00:02.2]} 41. Kf3 {[%clk 0:00:19.7]} 41...
Kf6 {[%clk 0:00:03.1]} 42. Ke4 {[%clk 0:00:19.9]} 42... Ke6 {[%clk 0:00:03.7]}
43. a6 {[%clk 0:00:16.8]} 43... Kd7 {[%clk 0:00:03.1]} 44. Kf5 {[%clk
0:00:16.7]} 44... Bd4 {[%clk 0:00:02.8]} 45. g4 {[%clk 0:00:10]} 45... Kc6
{[%clk 0:00:02.7]} 46. h4 {[%clk 0:00:09.8]} 46... Kb6 {[%clk 0:00:02.9]} 47. g5
{[%clk 0:00:10.1]} 47... hxg5 {[%clk 0:00:02.3]} 48. hxg5 {[%clk 0:00:10.1]}
48... Kxa6 {[%clk 0:00:02.6]} 49. g6 {[%clk 0:00:09.6]} 49... h6 {[%clk
0:00:03]} 50. Kg4 {[%clk 0:00:09.2]} 50... Bg7 {[%clk 0:00:03.1]} 51. Kh3 {[%clk
0:00:06.3]} 51... Kb5 {[%clk 0:00:04]} 52. Kh2 {[%clk 0:00:06.3]} 52... Kc5
{[%clk 0:00:04.9]} 53. Kh1 {[%clk 0:00:06.6]} 53... Kd5 {[%clk 0:00:05.8]} 54.
Kh2 {[%clk 0:00:07]} 54... Ke5 {[%clk 0:00:06.7]} 55. Kh1 {[%clk 0:00:07.4]}
55... Kf5 {[%clk 0:00:07.6]} 56. Kh2 {[%clk 0:00:07.8]} 56... Kxg6 {[%clk
0:00:08.5]} 57. Kh1 {[%clk 0:00:08.1]} 57... Kg5 {[%clk 0:00:09.4]} 58. Kh2
{[%clk 0:00:08.4]} 58... h5 {[%clk 0:00:10.3]} 59. Kh1 {[%clk 0:00:08.8]} 59...
h4 {[%clk 0:00:11.2]} 60. Kh2 {[%clk 0:00:09.1]} 60... Kg4 {[%clk 0:00:12.1]}
61. Kh1 {[%clk 0:00:09.4]} 61... Kh3 {[%clk 0:00:13]} 62. Kg1 {[%clk 0:00:09.4]}
62... Bd4+ {[%clk 0:00:13.5]} 63. Kh1 {[%clk 0:00:09.6]} 63... Be3 {[%clk
0:00:12.9]} 1/2-1/2

[Event "*** SCC Grand Prix: Titled Tuesday Blitz"]
[Site "Chess.com"]
[Date "2020.08.25"]
[Round "10"]
[White "Cambek64"]
[Black "catzapto"]
[Result "1-0"]
[WhiteElo "2322"]
[BlackElo "2046"]
[TimeControl "180+1"]
[EndTime "12:00:43 PDT"]
[Termination "Cambek64 won by resignation"]

1. e4 {[%clk 0:03:00.5]} 1... c5 {[%clk 0:03:00.9]} 2. Nc3 {[%clk 0:02:57.9]}
2... Nc6 {[%clk 0:02:51.9]} 3. d3 {[%clk 0:02:56.8]} 3... Nf6 {[%clk 0:02:42.7]}
4. f4 {[%clk 0:02:49.9]} 4... e6 {[%clk 0:02:40.4]} 5. Nf3 {[%clk 0:02:47.8]}
5... d5 {[%clk 0:02:40.8]} 6. Be2 {[%clk 0:02:47.9]} 6... dxe4 {[%clk
0:02:38.9]} 7. dxe4 {[%clk 0:02:46.6]} 7... Qxd1+ {[%clk 0:02:37.9]} 8. Bxd1
{[%clk 0:02:45.9]} 8... Be7 {[%clk 0:02:28.3]} 9. h3 {[%clk 0:02:44.3]} 9... O-O
{[%clk 0:02:28.1]} 10. Be3 {[%clk 0:02:44]} 10... Rd8 {[%clk 0:02:25.5]} 11. g4
{[%clk 0:02:40.5]} 11... Nd4 {[%clk 0:02:23.9]} 12. Kf2 {[%clk 0:02:31.1]} 12...
Nxf3 {[%clk 0:02:22.5]} 13. Bxf3 {[%clk 0:02:30.2]} 13... Bd7 {[%clk 0:02:18.1]}
14. e5 {[%clk 0:02:29.2]} 14... Ne8 {[%clk 0:02:01.6]} 15. Rhd1 {[%clk
0:02:26.6]} 15... Bc6 {[%clk 0:02:00.8]} 16. Bxc6 {[%clk 0:02:25.2]} 16... bxc6
{[%clk 0:02:00.9]} 17. b3 {[%clk 0:02:24]} 17... Nc7 {[%clk 0:01:56.2]} 18. Ne4
{[%clk 0:02:02]} 18... Nd5 {[%clk 0:01:43.8]} 19. Kf3 {[%clk 0:01:55.3]} 19...
Nxe3 {[%clk 0:01:42.1]} 20. Kxe3 {[%clk 0:01:54.4]} 20... Rd5 {[%clk 0:01:26]}
21. c4 {[%clk 0:01:53.2]} 21... Rxd1 {[%clk 0:01:26]} 22. Rxd1 {[%clk
0:01:52.8]} 22... a5 {[%clk 0:01:08.2]} 23. Rd7 {[%clk 0:01:47.4]} 23... Kf8
{[%clk 0:01:03.1]} 24. Rc7 {[%clk 0:01:35.4]} 24... a4 {[%clk 0:01:03.5]} 25.
Rxc6 {[%clk 0:01:26.6]} 25... axb3 {[%clk 0:01:03.8]} 26. axb3 {[%clk
0:01:25.4]} 26... Rb8 {[%clk 0:00:58.7]} 27. Kd2 {[%clk 0:01:15.9]} 27... Ke8
{[%clk 0:00:53.2]} 28. Kc2 {[%clk 0:01:10.1]} 28... Kd7 {[%clk 0:00:53.3]} 29.
Ra6 {[%clk 0:01:08.4]} 29... Rb7 {[%clk 0:00:48.2]} 30. g5 {[%clk 0:01:05.2]}
30... g6 {[%clk 0:00:41.1]} 31. h4 {[%clk 0:01:03.7]} 31... Kc7 {[%clk
0:00:40.9]} 32. Ng3 {[%clk 0:01:02.9]} 32... Rb6 {[%clk 0:00:21.5]} 33. Ra5
{[%clk 0:00:54.6]} 33... Rb8 {[%clk 0:00:19.7]} 34. h5 {[%clk 0:00:48.7]} 34...
Kb6 {[%clk 0:00:17.6]} 35. Rb5+ {[%clk 0:00:39.5]} 35... Kc7 {[%clk 0:00:17.7]}
36. Rxb8 {[%clk 0:00:39.4]} 36... Kxb8 {[%clk 0:00:17.9]} 37. h6 {[%clk
0:00:33.9]} 37... Kc7 {[%clk 0:00:17.8]} 38. Ne4 {[%clk 0:00:32.5]} 38... Kc6
{[%clk 0:00:16.7]} 39. Kc3 {[%clk 0:00:30.8]} 39... Kb6 {[%clk 0:00:15.6]} 40.
Kb2 {[%clk 0:00:27.4]} 40... Ka5 {[%clk 0:00:14.8]} 41. Ka3 {[%clk 0:00:27.3]}
41... Kb6 {[%clk 0:00:11]} 42. Ka4 {[%clk 0:00:25.2]} 42... Ka6 {[%clk
0:00:10.4]} 43. Nf6 {[%clk 0:00:24.6]} 43... Bxf6 {[%clk 0:00:09.7]} 44. gxf6
{[%clk 0:00:24.3]} 44... Kb6 {[%clk 0:00:10.1]} 45. b4 {[%clk 0:00:23.7]} 45...
cxb4 {[%clk 0:00:09.4]} 46. Kxb4 {[%clk 0:00:22.5]} 46... Kc6 {[%clk 0:00:10.3]}
47. c5 {[%clk 0:00:21.1]} 47... Kc7 {[%clk 0:00:10.8]} 48. Kb5 {[%clk
0:00:20.9]} 48... Kb7 {[%clk 0:00:11.3]} 49. c6+ {[%clk 0:00:20.3]} 49... Kc7
{[%clk 0:00:11.6]} 50. Kc5 {[%clk 0:00:20.4]} 50... Kc8 {[%clk 0:00:11.9]} 51.
Kd6 {[%clk 0:00:20.4]} 51... Kd8 {[%clk 0:00:12.3]} 52. c7+ {[%clk 0:00:20.1]}
52... Kc8 {[%clk 0:00:12.6]} 53. Ke7 {[%clk 0:00:20.5]} 53... g5 {[%clk
0:00:12.5]} 54. fxg5 {[%clk 0:00:19.7]} 54... Kxc7 {[%clk 0:00:12.9]} 55. Kxf7
{[%clk 0:00:19.8]} 55... Kd7 {[%clk 0:00:13.4]} 56. Kg7 {[%clk 0:00:19]} 56...
Ke8 {[%clk 0:00:13.7]} 57. f7+ {[%clk 0:00:19.2]} 57... Kd7 {[%clk 0:00:14.2]}
58. f8=Q {[%clk 0:00:19]} 58... Kc6 {[%clk 0:00:15.1]} 59. Qd6+ {[%clk
0:00:19.1]} 1-0

[Event "*** SCC Grand Prix: Titled Tuesday Blitz"]
[Site "Chess.com"]
[Date "2020.08.25"]
[Round "10"]
[White "Duong57"]
[Black "Evandro_Barbosa"]
[Result "1-0"]
[WhiteElo "2397"]
[BlackElo "2544"]
[TimeControl "180+1"]
[EndTime "12:00:45 PDT"]
[Termination "Duong57 won on time"]

1. d4 {[%clk 0:03:00.9]} 1... Nf6 {[%clk 0:02:59.4]} 2. c4 {[%clk 0:03:01.1]}
2... c5 {[%clk 0:02:58.8]} 3. d5 {[%clk 0:03:00.8]} 3... e6 {[%clk 0:02:59.2]}
4. Nc3 {[%clk 0:03:00.1]} 4... exd5 {[%clk 0:02:59.8]} 5. cxd5 {[%clk
0:03:00.2]} 5... d6 {[%clk 0:03:00.2]} 6. e4 {[%clk 0:03:00]} 6... g6 {[%clk
0:03:00.4]} 7. f4 {[%clk 0:03:00.3]} 7... Bg7 {[%clk 0:02:59.8]} 8. Bb5+ {[%clk
0:03:00.4]} 8... Nfd7 {[%clk 0:02:59.9]} 9. a4 {[%clk 0:03:00.5]} 9... O-O
{[%clk 0:03:00.2]} 10. Nf3 {[%clk 0:03:00.5]} 10... Na6 {[%clk 0:03:00.7]} 11.
O-O {[%clk 0:02:59.4]} 11... Nb4 {[%clk 0:03:01.2]} 12. Re1 {[%clk 0:02:50.6]}
12... a6 {[%clk 0:03:01.1]} 13. Bf1 {[%clk 0:02:50]} 13... Nf6 {[%clk
0:02:59.4]} 14. h3 {[%clk 0:02:49.7]} 14... b6 {[%clk 0:02:58.2]} 15. Be3 {[%clk
0:02:39.5]} 15... Bb7 {[%clk 0:02:56.9]} 16. Qd2 {[%clk 0:02:37.8]} 16... Re8
{[%clk 0:02:56.1]} 17. Bf2 {[%clk 0:02:37]} 17... Rc8 {[%clk 0:02:48.7]} 18.
Rad1 {[%clk 0:02:34.7]} 18... Rc7 {[%clk 0:02:47]} 19. Bh4 {[%clk 0:02:27.6]}
19... Qa8 {[%clk 0:02:39.3]} 20. Bc4 {[%clk 0:02:08.8]} 20... Rd7 {[%clk
0:02:20.1]} 21. Qf2 {[%clk 0:01:52.7]} 21... Nh5 {[%clk 0:02:16.4]} 22. Qd2
{[%clk 0:01:38.1]} 22... Bh6 {[%clk 0:02:11.6]} 23. Bg5 {[%clk 0:01:38.2]} 23...
Bg7 {[%clk 0:02:10.9]} 24. Bh4 {[%clk 0:01:33.9]} 24... Rf8 {[%clk 0:01:52.5]}
25. e5 {[%clk 0:01:05.5]} 25... f5 {[%clk 0:01:28.2]} 26. Ng5 {[%clk 0:00:30]}
26... Bh6 {[%clk 0:01:02.7]} 27. Ne6 {[%clk 0:00:28.8]} 27... Re8 {[%clk
0:01:02.1]} 28. Bg5 {[%clk 0:00:26.5]} 28... Bxg5 {[%clk 0:01:00.4]} 29. Nxg5
{[%clk 0:00:24.7]} 29... Kh8 {[%clk 0:00:52.9]} 30. e6 {[%clk 0:00:24.5]} 30...
Rde7 {[%clk 0:00:49.4]} 31. Nf7+ {[%clk 0:00:24.2]} 31... Kg7 {[%clk 0:00:46.4]}
32. Nxd6 {[%clk 0:00:24.1]} 32... Rd8 {[%clk 0:00:39.2]} 33. Nxb7 {[%clk
0:00:23.8]} 33... Qxb7 {[%clk 0:00:39.1]} 34. d6 {[%clk 0:00:20.8]} 34... Nf6
{[%clk 0:00:38]} 35. Qf2 {[%clk 0:00:12.2]} 35... Ree8 {[%clk 0:00:35.1]} 36. e7
{[%clk 0:00:11.7]} 36... Rd7 {[%clk 0:00:32.6]} 37. Be6 {[%clk 0:00:11.5]} 37...
Nc6 {[%clk 0:00:27.9]} 38. Bxd7 {[%clk 0:00:11.6]} 38... Qxd7 {[%clk 0:00:27.8]}
39. Nd5 {[%clk 0:00:09.3]} 39... Qxd6 {[%clk 0:00:20.3]} 40. Nxb6 {[%clk
0:00:09.1]} 40... Nd4 {[%clk 0:00:20.3]} 41. Nc4 {[%clk 0:00:08.7]} 41... Qd5
{[%clk 0:00:18.1]} 42. Ne5 {[%clk 0:00:08.3]} 42... Rxe7 {[%clk 0:00:13.8]} 43.
Nf3 {[%clk 0:00:04.8]} 43... Ne4 {[%clk 0:00:13.4]} 44. Qf1 {[%clk 0:00:03.4]}
44... Rd7 {[%clk 0:00:09.7]} 45. Nxd4 {[%clk 0:00:03.6]} 45... cxd4 {[%clk
0:00:09.5]} 46. Qd3 {[%clk 0:00:03.9]} 46... Nc5 {[%clk 0:00:08.5]} 47. Qd2
{[%clk 0:00:03.8]} 47... d3 {[%clk 0:00:08.5]} 48. Qc3+ {[%clk 0:00:04.1]} 48...
Kf7 {[%clk 0:00:08.8]} 49. Re5 {[%clk 0:00:04.7]} 49... Ne4 {[%clk 0:00:05]} 50.
Rxd5 {[%clk 0:00:04.5]} 50... Nxc3 {[%clk 0:00:05.7]} 51. Rxd7+ {[%clk
0:00:04.8]} 51... Ke6 {[%clk 0:00:06.1]} 52. R7xd3 {[%clk 0:00:05.2]} 52... Ne2+
{[%clk 0:00:05.9]} 53. Kf2 {[%clk 0:00:04.8]} 53... Nxf4 {[%clk 0:00:06.8]} 54.
Re3+ {[%clk 0:00:05.3]} 54... Kf6 {[%clk 0:00:06.7]} 55. Kf3 {[%clk 0:00:05.9]}
1-0